fUSD/lending_fUSD_20260504
["ID","MTS","AMOUNT","RATE_DAILY","PERIOD"]
[421556653,1777876240000,-500.0,0.00014651,2]
[421556654,1777876240000,-500.0,0.00014651,2]
[421556660,1777876240000,-151.0,0.00014651,2]
[421556661,1777876240000,-151.0,0.00014651,2]
[421556652,1777876240000,-151.0,0.00014651,2]
[421556650,1777876240000,-151.0,0.00014651,2]
[421556637,1777876240000,-572.63857253,0.00014278,2]
[421556639,1777876240000,-500.0,0.00014278,2]
[421556665,1777876240000,-151.0,0.00014651,2]
[421556616,1777876240000,-607.74653611,0.00013413,2]
[421556617,1777876240000,-1072.25346389,0.00013413,2]
[421556619,1777876240000,-2403.70806129,0.00013599,2]
[421556618,1777876240000,-873.17,0.00013564,2]
[421556621,1777876240000,-500.0,0.00013698,2]
[421556620,1777876240000,-165.81,0.0001366,2]
[421556622,1777876240000,-500.0,0.00013698,2]
[421556624,1777876240000,-500.0,0.00013698,2]
[421556631,1777876240000,-166.66,0.00013927,2]
[421556625,1777876240000,-500.0,0.00013698,2]
[421556623,1777876240000,-500.0,0.00013698,2]
[421556630,1777876240000,-1887.82,0.00013746,2]
[421556627,1777876240000,-1151.56,0.00013699,2]
[421556629,1777876240000,-200.0,0.00013699,2]
[421556628,1777876240000,-166.66,0.00013699,2]
[421556626,1777876240000,-500.0,0.00013698,2]
[421556633,1777876240000,-9759.55822585,0.00014,2]
[421556634,1777876240000,-166.66,0.00014155,2]
[421556632,1777876240000,-250.0,0.00014,2]
[421556636,1777876240000,-502.19643755,0.00014278,2]
[421556643,1777876240000,-2000.0,0.00014339,2]
[421556662,1777876240000,-151.0,0.00014651,2]
[421556658,1777876240000,-151.0,0.00014651,2]
[421556666,1777876240000,-151.0,0.00014651,2]
[421556689,1777876240000,-151.384206,0.00015,2]
[421556687,1777876240000,-151.0,0.00015,2]
[421556686,1777876240000,-151.0,0.00015,2]
[421556685,1777876240000,-151.0,0.00015,2]
[421556696,1777876240000,-207.73793629,0.00015649,2]
[421556706,1777876240000,-15938.43376256,0.00016116,2]
[421556695,1777876240000,-1002.05177941,0.00015374,2]
[421556704,1777876240000,-2192.07,0.00016116,5]
[421556703,1777876240000,-3865.98,0.00016116,2]
[421556697,1777876240000,-323.47,0.00015836,2]
[421556698,1777876240000,-165.81,0.00015914,2]
[421556699,1777876240000,-2000.0,0.00015932,2]
[421556705,1777876240000,-834.79,0.00016116,2]
[421556701,1777876240000,-300.0,0.00016,2]
[421556700,1777876240000,-166.11,0.00015979,2]
[421556702,1777876240000,-299.99,0.00016116,4]
[421556708,1777876240000,-630.80950028,0.00016116,2]
[421556710,1777876240000,-3121.30642487,0.00016116,2]
[421556712,1777876240000,-846.22880393,0.00016116,2]
[421556713,1777876240000,-272.24010028,0.00016116,2]
[421556663,1777876240000,-151.0,0.00014651,2]
[421556684,1777876240000,-151.0,0.00015,2]
[421556683,1777876240000,-151.0,0.00015,2]
[421556688,1777876240000,-151.0,0.00015,2]
[421556694,1777876240000,-505.72609652,0.00015374,2]
[421556669,1777876240000,-151.0,0.00014651,2]
[421556664,1777876240000,-151.0,0.00014651,2]
[421556667,1777876240000,-151.0,0.00014651,2]
[421556711,1777876240000,-2565.98624479,0.00016116,2]
[421556668,1777876240000,-151.0,0.00014651,2]
[421556671,1777876240000,-206.03359688,0.00014651,2]
[421556670,1777876240000,-151.0,0.00014651,2]
[421556672,1777876240000,-500.0,0.00014651,2]
[421556691,1777876240000,-151.0,0.00015,2]
[421556682,1777876240000,-151.0,0.00015,2]
[421556673,1777876240000,-1182.0,0.00014755,2]
[421556681,1777876240000,-92974.93498159,0.00015,2]
[421556679,1777876240000,-500.0,0.00014999,2]
[421556676,1777876240000,-980.80104072,0.00014826,2]
[421556675,1777876240000,-1000.0,0.00014826,2]
[421556678,1777876240000,-2478.78534589,0.000149,2]
[421556680,1777876240000,-18588.75739969,0.00015,2]
[421556677,1777876240000,-504.14107151,0.00014826,2]
[421556693,1777876240000,-280.0,0.00015352,2]
[421556692,1777876240000,-1412.2385208,0.00015292,2]
[421556674,1777876240000,-1000.0,0.00014826,2]
[421556690,1777876240000,-151.0,0.00015,2]
[421556719,1777876241000,-265.88871251,0.00016116,2]
[421556717,1777876241000,-150.99,0.00016116,2]
[421556718,1777876241000,-734.10128749,0.00016116,2]
[421556715,1777876241000,-440.01483671,0.00016116,2]
[421556714,1777876241000,-1624.98516329,0.00016116,2]
[421556716,1777876241000,-1094.56516329,0.00016116,2]
[421556721,1777876241000,-2040.85654907,0.00016116,2]
[421556720,1777876241000,-383.40345093,0.00016116,2]
[421556722,1777876241000,-207.9,0.00016438,2]
[421556728,1777876241000,-1291.691165,0.00016438,2]
[421556726,1777876241000,-1273.43999362,0.00016438,2]
[421556730,1777876241000,-5679.71490154,0.00016766,2]
[421556723,1777876241000,-865.40597346,0.00016438,2]
[421556724,1777876241000,-426.28519154,0.00016438,2]
[421556727,1777876241000,-1291.691165,0.00016438,2]
[421556725,1777876241000,-18.25117138,0.00016438,2]
[421556729,1777876241000,-500.0,0.00016599,2]
[421556759,1777876242000,-426.36809262,0.00016766,2]
[421556760,1777876242000,-2619.9222051,0.00016766,2]
[421556765,1777876243000,-426.25496139,0.00017481,2]
[421556764,1777876243000,-4026.83714417,0.00017481,2]
[421556763,1777876243000,-500.0,0.00017473,2]
[421556762,1777876243000,-323.47,0.00017419,2]
[421556761,1777876243000,-10043.03163476,0.00016766,2]
[421556785,1777876245000,-3743.09066726,0.00017481,2]
[421556786,1777876245000,-405.8534426,0.00017481,2]
[421556787,1777876245000,-21930.41652322,0.00017481,2]
[421556788,1777876245000,-11804.9999999,0.00017481,2]
[421556790,1777876246000,-1017.12352263,0.00017481,2]
[421556789,1777876246000,-1031.79579359,0.00017481,2]
[421556796,1777876367000,280.0,8.219e-05,2]
[421556798,1777876458000,170.73,0.00026035,120]
[421556799,1777876486000,163.308611,0.00022311,120]
[421556800,1777876634000,227.43,8.368e-05,2]
[421556804,1777876785000,280.0,8.219e-05,2]
[421556806,1777877202000,-178.05542724,0.00012701,2]
[421556807,1777877221000,280.0,8.219e-05,2]
[421556808,1777877295000,303.486,0.00030137,120]
[421556809,1777877372000,-250.0,0.00012701,2]
[421556810,1777877372000,-316.0,0.00012701,2]
[421556812,1777877372000,-171.1563974,0.00013156,2]
[421556811,1777877372000,-150.0,0.00013064,2]
[421556861,1777877432000,-8882.6885148,0.00015196,2]
[421556859,1777877432000,-151.0,0.00015196,2]
[421556857,1777877432000,-204.73485834,0.00015196,2]
[421556855,1777877432000,-151.0,0.00015196,2]
[421556871,1777877432000,-196.57,0.00015451,2]
[421556870,1777877432000,-641.55892256,0.00015251,2]
[421556868,1777877432000,-151.0,0.00015196,2]
[421556869,1777877432000,-199.41074955,0.00015196,2]
[421556816,1777877432000,-162.01423822,0.00013373,2]
[421556867,1777877432000,-237.19324307,0.00015196,2]
[421556866,1777877432000,-151.0,0.00015196,2]
[421556854,1777877432000,-670.58624095,0.00015196,2]
[421556834,1777877432000,-2500.0,0.00013971,2]
[421556838,1777877432000,-2500.0,0.00013971,2]
[421556836,1777877432000,-2500.0,0.00013971,2]
[421556849,1777877432000,-578.20924308,0.00015196,2]
[421556832,1777877432000,-2500.0,0.00013971,2]
[421556847,1777877432000,-500.0,0.0001471,2]
[421556845,1777877432000,-1843.97,0.0001465,2]
[421556843,1777877432000,-4036.26392844,0.0001422,2]
[421556841,1777877432000,-2500.0,0.00013971,2]
[421556863,1777877432000,-151.0,0.00015196,2]
[421556823,1777877432000,-1843.97,0.00013698,2]
[421556821,1777877432000,-207.73793629,0.00013528,2]
[421556825,1777877432000,-1843.97,0.00013698,2]
[421556828,1777877432000,-1200.0,0.0001397,2]
[421556819,1777877432000,-644.88046547,0.00013451,2]
[421556817,1777877432000,-260.0,0.00013373,2]
[421556852,1777877432000,-1328.27659266,0.00015196,2]
[421556872,1777877432000,-2000.0,0.00015568,2]
[421556830,1777877432000,-1958.19798372,0.00013971,2]
[421556875,1777877432000,-200.0,0.0001576,2]
[421556874,1777877432000,-527.70458331,0.00015744,2]
[421556903,1777877432000,-404.7281615,0.00016944,2]
[421556902,1777877432000,-189.00671223,0.00016922,2]
[421556900,1777877432000,-150.99,0.00016922,2]
[421556901,1777877432000,-689.48328777,0.00016922,2]
[421556898,1777877432000,-1376.3623715,0.00016844,2]
[421556899,1777877432000,-800.0,0.000169,6]
[421556897,1777877432000,-500.0,0.000168,6]
[421556896,1777877432000,-200.0,0.000167,6]
[421556895,1777877432000,-500.0,0.00016666,2]
[421556894,1777877432000,-331.94787786,0.00016599,2]
[421556893,1777877432000,-150.0,0.00016493,2]
[421556891,1777877432000,-1627.43,0.00016448,2]
[421556890,1777877432000,-8878.8072197,0.00016363,2]
[421556888,1777877432000,-16740.8176551,0.00016363,2]
[421556865,1777877432000,-151.0,0.00015196,2]
[421556889,1777877432000,-10665.3696553,0.00016363,2]
[421556892,1777877432000,-150.0,0.00016474,2]
[421556876,1777877432000,-200.0,0.00015894,2]
[421556873,1777877432000,-280.0,0.00015668,2]
[421556883,1777877432000,-533.88,0.00015996,2]
[421556882,1777877432000,-150.0,0.00015904,2]
[421556881,1777877432000,-150.0,0.00015904,2]
[421556879,1777877432000,-150.0,0.00015904,2]
[421556877,1777877432000,-150.0,0.00015904,2]
[421556880,1777877432000,-150.0,0.00015904,2]
[421556878,1777877432000,-150.0,0.00015904,2]
[421556886,1777877432000,-166.11,0.00016306,2]
[421556885,1777877432000,-196.57,0.00016223,2]
[421556887,1777877432000,-399.443655,0.00016363,2]
[421556884,1777877432000,-7168.5689332,0.0001606,2]
[421556912,1777877437000,-11650.29,0.0001697,2]
[421556910,1777877437000,-129096.9319657,0.00015315,2]
[421556911,1777877437000,-3830.88066832,0.00016944,2]
[421556913,1777877437000,-196.57,0.00016996,2]
[421556915,1777877437000,-4125.7725,0.00017181,2]
[421556916,1777877437000,-14032.2222,0.00017181,2]
[421556914,1777877437000,-150.0,0.00017082,2]
[421556959,1777877438000,-536.46235081,0.00017197,2]
[421556947,1777877438000,-500.0,0.00017197,2]
[421556953,1777877438000,-536.46235081,0.00017197,2]
[421556951,1777877438000,-500.0,0.00017197,2]
[421556962,1777877438000,-536.46235081,0.00017197,2]
[421556963,1777877438000,-500.0,0.00017197,2]
[421556957,1777877438000,-536.46235081,0.00017197,2]
[421556956,1777877438000,-536.46235081,0.00017197,2]
[421556955,1777877438000,-500.0,0.00017197,2]
[421556964,1777877438000,-500.0,0.00017197,2]
[421556949,1777877438000,-500.0,0.00017197,2]
[421556958,1777877438000,-500.0,0.00017197,2]
[421556977,1777877438000,-500.0,0.00017197,2]
[421556961,1777877438000,-536.46235081,0.00017197,2]
[421556966,1777877438000,-536.46235081,0.00017197,2]
[421556975,1777877438000,-536.46235081,0.00017197,2]
[421556965,1777877438000,-536.46235081,0.00017197,2]
[421556967,1777877438000,-500.0,0.00017197,2]
[421556980,1777877438000,-536.46235081,0.00017197,2]
[421556968,1777877438000,-536.46235081,0.00017197,2]
[421556979,1777877438000,-536.46235081,0.00017197,2]
[421556948,1777877438000,-536.46235081,0.00017197,2]
[421556982,1777877438000,-611.16794312,0.00017197,2]
[421556971,1777877438000,-500.0,0.00017197,2]
[421556970,1777877438000,-536.46235081,0.00017197,2]
[421556969,1777877438000,-500.0,0.00017197,2]
[421556960,1777877438000,-500.0,0.00017197,2]
[421556945,1777877438000,-500.0,0.00017197,2]
[421556932,1777877438000,-536.46235081,0.00017197,2]
[421556943,1777877438000,-500.0,0.00017197,2]
[421556925,1777877438000,-500.0,0.00017197,2]
[421556924,1777877438000,-500.0,0.00017197,2]
[421556917,1777877438000,-348.9010334,0.00017197,2]
[421556918,1777877438000,-536.46235081,0.00017197,2]
[421556922,1777877438000,-536.46235081,0.00017197,2]
[421556921,1777877438000,-500.0,0.00017197,2]
[421556920,1777877438000,-500.0,0.00017197,2]
[421556919,1777877438000,-500.0,0.00017197,2]
[421556923,1777877438000,-594.21990497,0.00017197,2]
[421556926,1777877438000,-536.46235081,0.00017197,2]
[421556928,1777877438000,-454.66572892,0.00017197,2]
[421556937,1777877438000,-536.46235081,0.00017197,2]
[421556941,1777877438000,-500.0,0.00017197,2]
[421556938,1777877438000,-500.0,0.00017197,2]
[421556930,1777877438000,-536.46235081,0.00017197,2]
[421556933,1777877438000,-500.0,0.00017197,2]
[421556931,1777877438000,-500.0,0.00017197,2]
[421556973,1777877438000,-536.46235081,0.00017197,2]
[421556934,1777877438000,-500.0,0.00017197,2]
[421556936,1777877438000,-500.0,0.00017197,2]
[421556940,1777877438000,-500.0,0.00017197,2]
[421556950,1777877438000,-536.46235081,0.00017197,2]
[421556946,1777877438000,-536.46235081,0.00017197,2]
[421556939,1777877438000,-536.46235081,0.00017197,2]
[421556942,1777877438000,-536.46235081,0.00017197,2]
[421556944,1777877438000,-536.46235081,0.00017197,2]
[421556935,1777877438000,-536.46235081,0.00017197,2]
[421556986,1777877438000,-500.0,0.00017197,2]
[421556927,1777877438000,-500.0,0.00017197,2]
[421556991,1777877438000,-536.46235081,0.00017197,2]
[421557048,1777877438000,-536.46235081,0.00017197,2]
[421557054,1777877438000,-166.4,0.00017232,2]
[421557055,1777877438000,-3762.78322378,0.00017269,2]
[421557066,1777877438000,-168.23978859,0.00017373,2]
[421557058,1777877438000,-2600.9281219,0.00017279,2]
[421557057,1777877438000,-1129.79081664,0.00017279,2]
[421557056,1777877438000,-2500.0,0.00017278,2]
[421557061,1777877438000,-3348.21294891,0.00017302,2]
[421557060,1777877438000,-1852.55050983,0.00017302,2]
[421557065,1777877438000,-170.73,0.00017357,2]
[421557063,1777877438000,-452.05255222,0.00017338,2]
[421557064,1777877438000,-200.0,0.00017341,2]
[421557059,1777877438000,-5000.0,0.00017281,2]
[421557062,1777877438000,-427.6543259,0.00017314,2]
[421557067,1777877438000,-500.0,0.0001738,2]
[421557070,1777877438000,-248.46489448,0.0001738,2]
[421557068,1777877438000,-500.0,0.0001738,2]
[421557071,1777877438000,-500.0,0.0001738,2]
[421557075,1777877438000,-533.0,0.00017381,5]
[421557073,1777877438000,-500.0,0.0001738,2]
[421557074,1777877438000,-500.0,0.0001738,2]
[421557072,1777877438000,-289.74119291,0.0001738,2]
[421557069,1777877438000,-294.65098794,0.0001738,2]
[421557077,1777877438000,-1023150.91059637,0.00017381,2]
[421557076,1777877438000,-150.0,0.00017381,2]
[421557078,1777877438000,-2606.63677047,0.00017381,2]
[421556988,1777877438000,-536.46235081,0.00017197,2]
[421557053,1777877438000,-3046.06923685,0.00017199,2]
[421557041,1777877438000,-536.46235081,0.00017197,2]
[421556929,1777877438000,-500.0,0.00017197,2]
[421557039,1777877438000,-536.46235081,0.00017197,2]
[421556993,1777877438000,-536.46235081,0.00017197,2]
[421557001,1777877438000,-536.46235081,0.00017197,2]
[421556995,1777877438000,-536.46235081,0.00017197,2]
[421556997,1777877438000,-500.0,0.00017197,2]
[421556999,1777877438000,-536.46235081,0.00017197,2]
[421557003,1777877438000,-536.46235081,0.00017197,2]
[421557008,1777877438000,-500.0,0.00017197,2]
[421557005,1777877438000,-536.46235081,0.00017197,2]
[421557010,1777877438000,-536.46235081,0.00017197,2]
[421557021,1777877438000,-536.46235081,0.00017197,2]
[421557029,1777877438000,-536.46235081,0.00017197,2]
[421557025,1777877438000,-536.46235081,0.00017197,2]
[421557052,1777877438000,-536.46235081,0.00017197,2]
[421557019,1777877438000,-536.46235081,0.00017197,2]
[421557017,1777877438000,-536.46235081,0.00017197,2]
[421557016,1777877438000,-536.46235081,0.00017197,2]
[421557014,1777877438000,-500.0,0.00017197,2]
[421557023,1777877438000,-536.46235081,0.00017197,2]
[421557012,1777877438000,-536.46235081,0.00017197,2]
[421557031,1777877438000,-536.46235081,0.00017197,2]
[421557033,1777877438000,-536.46235081,0.00017197,2]
[421557035,1777877438000,-536.46235081,0.00017197,2]
[421557046,1777877438000,-536.46235081,0.00017197,2]
[421557050,1777877438000,-536.46235081,0.00017197,2]
[421557043,1777877438000,-536.46235081,0.00017197,2]
[421557037,1777877438000,-536.46235081,0.00017197,2]
[421557027,1777877438000,-536.46235081,0.00017197,2]
[421556984,1777877438000,-536.46235081,0.00017197,2]
[421557079,1777877439000,-1282.18117678,0.00017381,2]
[421557100,1777877440000,-292.6775624,0.00017381,2]
[421557099,1777877440000,-68581.91747912,0.00017381,2]
[421557098,1777877440000,-797.76,0.00017381,2]
[421557097,1777877440000,-873.22049338,0.00017381,2]
[421557101,1777877440000,-265.20078009,0.00017381,2]
[421557111,1777877442000,-4963.42952712,0.00017381,2]
[421557110,1777877442000,-887.6206,0.00017381,2]
[421557116,1777877443000,-356.82761564,0.00017381,2]
[421557117,1777877443000,-3868.19664461,0.00017381,2]
[421557115,1777877443000,-48252.70208837,0.00017381,2]
[421557114,1777877443000,-4139.35275217,0.00017381,2]
[421557113,1777877443000,-296.82102635,0.00017381,2]
[421557112,1777877443000,-4334.78576873,0.00017381,2]
[421557137,1777877446000,-1460.0,0.00017381,2]
[421557138,1777877446000,-9029.68191369,0.00017381,2]
[421557139,1777877446000,-4580.66725332,0.00017381,2]
[421557145,1777877533000,280.0,8.219e-05,2]
[421557146,1777877665000,280.0,8.219e-05,2]
[421557148,1777878093000,280.0,8.219e-05,2]
[421557152,1777878434000,280.0,8.219e-05,2]
[421557154,1777878468000,-435.07921155,0.00014019,2]
[421557153,1777878468000,-250.0,0.00014,2]
[421557155,1777878468000,-328.8436026,0.00014019,2]
[421557156,1777878468000,-300.0,0.00014037,2]
[421557157,1777878468000,-279.27424018,0.0001405,2]
[421557158,1777878468000,-2500.0,0.00014075,2]
[421557160,1777878468000,-300.0,0.00014171,2]
[421557162,1777878468000,-2500.0,0.0001438,2]
[421557159,1777878468000,-201.25251652,0.0001415,2]
[421557161,1777878468000,-2500.0,0.0001438,2]
[421557163,1777878468000,-2500.0,0.0001438,2]
[421557166,1777878468000,-250.0,0.000154,2]
[421557168,1777878468000,-250.0,0.000154,2]
[421557165,1777878468000,-300.0,0.000154,2]
[421557167,1777878468000,-300.0,0.000154,2]
[421557169,1777878468000,-571.54580944,0.000154,2]
[421557170,1777878468000,-214.69925244,0.000154,2]
[421557164,1777878468000,-2500.0,0.000154,2]
[421557184,1777878469000,-200.0,0.000169,6]
[421557183,1777878469000,-280.0,0.00016595,2]
[421557185,1777878469000,-480.0,0.00017,2]
[421557190,1777878469000,-3420.01235446,0.00017081,2]
[421557187,1777878469000,-1398.043,0.00017081,2]
[421557182,1777878469000,-329.2,0.00016438,2]
[421557186,1777878469000,-2500.0,0.0001708,2]
[421557179,1777878469000,-250.0,0.00016127,2]
[421557176,1777878469000,-417.0,0.00016056,2]
[421557180,1777878469000,-200.0,0.00016195,2]
[421557181,1777878469000,-200.0,0.00016301,2]
[421557177,1777878469000,-928.0,0.00016056,2]
[421557189,1777878469000,-1403.27475267,0.00017081,2]
[421557174,1777878469000,-170.73,0.00015934,2]
[421557172,1777878469000,-266.94,0.00015807,2]
[421557173,1777878469000,-578.20924308,0.00015845,2]
[421557171,1777878469000,-2000.0,0.00015727,2]
[421557178,1777878469000,-1221.0,0.00016056,2]
[421557188,1777878469000,-234.508,0.00017081,2]
[421557175,1777878469000,-300.0,0.00016,2]
[421557191,1777878469000,-500.0,0.00017176,2]
[421557192,1777878469000,-177.135545,0.00017176,2]
[421557211,1777878469000,-500.0,0.00017176,2]
[421557210,1777878469000,-500.0,0.00017176,2]
[421557209,1777878469000,-500.0,0.00017176,2]
[421557208,1777878469000,-500.0,0.00017176,2]
[421557207,1777878469000,-500.0,0.00017176,2]
[421557205,1777878469000,-500.0,0.00017176,2]
[421557206,1777878469000,-500.0,0.00017176,2]
[421557204,1777878469000,-500.0,0.00017176,2]
[421557203,1777878469000,-500.0,0.00017176,2]
[421557201,1777878469000,-500.0,0.00017176,2]
[421557193,1777878469000,-500.0,0.00017176,2]
[421557202,1777878469000,-500.0,0.00017176,2]
[421557196,1777878469000,-500.0,0.00017176,2]
[421557195,1777878469000,-500.0,0.00017176,2]
[421557194,1777878469000,-500.0,0.00017176,2]
[421557198,1777878469000,-500.0,0.00017176,2]
[421557200,1777878469000,-500.0,0.00017176,2]
[421557199,1777878469000,-500.0,0.00017176,2]
[421557197,1777878469000,-500.0,0.00017176,2]
[421557222,1777878470000,-500.0,0.00017176,2]
[421557226,1777878470000,-500.0,0.00017176,2]
[421557225,1777878470000,-500.0,0.00017176,2]
[421557223,1777878470000,-500.0,0.00017176,2]
[421557224,1777878470000,-500.0,0.00017176,2]
[421557228,1777878470000,-500.0,0.00017176,2]
[421557221,1777878470000,-500.0,0.00017176,2]
[421557217,1777878470000,-500.0,0.00017176,2]
[421557220,1777878470000,-500.0,0.00017176,2]
[421557218,1777878470000,-500.0,0.00017176,2]
[421557216,1777878470000,-500.0,0.00017176,2]
[421557215,1777878470000,-500.0,0.00017176,2]
[421557214,1777878470000,-500.0,0.00017176,2]
[421557212,1777878470000,-500.0,0.00017176,2]
[421557213,1777878470000,-500.0,0.00017176,2]
[421557219,1777878470000,-500.0,0.00017176,2]
[421557229,1777878470000,-500.0,0.00017176,2]
[421557234,1777878470000,-500.0,0.00017176,2]
[421557230,1777878470000,-500.0,0.00017176,2]
[421557247,1777878470000,-317.75941384,0.00017176,2]
[421557245,1777878470000,-500.0,0.00017176,2]
[421557246,1777878470000,-500.0,0.00017176,2]
[421557244,1777878470000,-500.0,0.00017176,2]
[421557227,1777878470000,-500.0,0.00017176,2]
[421557241,1777878470000,-500.0,0.00017176,2]
[421557242,1777878470000,-500.0,0.00017176,2]
[421557243,1777878470000,-500.0,0.00017176,2]
[421557240,1777878470000,-500.0,0.00017176,2]
[421557236,1777878470000,-500.0,0.00017176,2]
[421557237,1777878470000,-194.65738879,0.00017176,2]
[421557238,1777878470000,-500.0,0.00017176,2]
[421557233,1777878470000,-500.0,0.00017176,2]
[421557231,1777878470000,-500.0,0.00017176,2]
[421557232,1777878470000,-500.0,0.00017176,2]
[421557239,1777878470000,-500.0,0.00017176,2]
[421557235,1777878470000,-500.0,0.00017176,2]
[421557275,1777878471000,-1127.63537576,0.00017176,2]
[421557278,1777878471000,-500.0,0.00017176,2]
[421557276,1777878471000,-500.0,0.00017176,2]
[421557277,1777878471000,-1127.63537576,0.00017176,2]
[421557273,1777878471000,-1127.63537576,0.00017176,2]
[421557274,1777878471000,-500.0,0.00017176,2]
[421557270,1777878471000,-500.0,0.00017176,2]
[421557272,1777878471000,-500.0,0.00017176,2]
[421557248,1777878471000,-500.0,0.00017176,2]
[421557249,1777878471000,-500.0,0.00017176,2]
[421557250,1777878471000,-500.0,0.00017176,2]
[421557251,1777878471000,-500.0,0.00017176,2]
[421557253,1777878471000,-1127.63537576,0.00017176,2]
[421557255,1777878471000,-1127.63537576,0.00017176,2]
[421557254,1777878471000,-500.0,0.00017176,2]
[421557257,1777878471000,-1127.63537576,0.00017176,2]
[421557256,1777878471000,-500.0,0.00017176,2]
[421557259,1777878471000,-1127.63537576,0.00017176,2]
[421557252,1777878471000,-500.0,0.00017176,2]
[421557262,1777878471000,-500.0,0.00017176,2]
[421557258,1777878471000,-500.0,0.00017176,2]
[421557271,1777878471000,-1127.63537576,0.00017176,2]
[421557269,1777878471000,-1127.63537576,0.00017176,2]
[421557266,1777878471000,-500.0,0.00017176,2]
[421557267,1777878471000,-1127.63537576,0.00017176,2]
[421557268,1777878471000,-500.0,0.00017176,2]
[421557265,1777878471000,-1127.63537576,0.00017176,2]
[421557263,1777878471000,-1127.63537576,0.00017176,2]
[421557260,1777878471000,-500.0,0.00017176,2]
[421557261,1777878471000,-1127.63537576,0.00017176,2]
[421557264,1777878471000,-500.0,0.00017176,2]
[421557292,1777878472000,-1127.63537576,0.00017176,2]
[421557288,1777878472000,-500.0,0.00017176,2]
[421557293,1777878472000,-500.0,0.00017176,2]
[421557291,1777878472000,-500.0,0.00017176,2]
[421557289,1777878472000,-1127.63537576,0.00017176,2]
[421557290,1777878472000,-500.0,0.00017176,2]
[421557286,1777878472000,-500.0,0.00017176,2]
[421557281,1777878472000,-1127.63537576,0.00017176,2]
[421557285,1777878472000,-1127.63537576,0.00017176,2]
[421557284,1777878472000,-1127.63537576,0.00017176,2]
[421557282,1777878472000,-500.0,0.00017176,2]
[421557283,1777878472000,-500.0,0.00017176,2]
[421557279,1777878472000,-500.0,0.00017176,2]
[421557280,1777878472000,-1127.63537576,0.00017176,2]
[421557294,1777878472000,-1127.63537576,0.00017176,2]
[421557287,1777878472000,-1127.63537576,0.00017176,2]
[421557295,1777878472000,-500.0,0.00017176,2]
[421557297,1777878472000,-500.0,0.00017176,2]
[421557296,1777878472000,-1127.63537576,0.00017176,2]
[421557299,1777878472000,-500.0,0.00017176,2]
[421557313,1777878472000,-1127.63537576,0.00017176,2]
[421557312,1777878472000,-500.0,0.00017176,2]
[421557310,1777878472000,-1127.63537576,0.00017176,2]
[421557311,1777878472000,-1127.63537576,0.00017176,2]
[421557307,1777878472000,-1127.63537576,0.00017176,2]
[421557309,1777878472000,-1127.63537576,0.00017176,2]
[421557306,1777878472000,-500.0,0.00017176,2]
[421557308,1777878472000,-500.0,0.00017176,2]
[421557305,1777878472000,-1127.63537576,0.00017176,2]
[421557304,1777878472000,-500.0,0.00017176,2]
[421557302,1777878472000,-1127.63537576,0.00017176,2]
[421557301,1777878472000,-500.0,0.00017176,2]
[421557300,1777878472000,-1127.63537576,0.00017176,2]
[421557298,1777878472000,-1127.63537576,0.00017176,2]
[421557303,1777878472000,-1127.63537576,0.00017176,2]
[421557321,1777878473000,-500.0,0.00017176,2]
[421557330,1777878473000,-1076.78123137,0.00017176,2]
[421557328,1777878473000,-1076.78123137,0.00017176,2]
[421557327,1777878473000,-500.0,0.00017176,2]
[421557326,1777878473000,-1076.78123137,0.00017176,2]
[421557325,1777878473000,-500.0,0.00017176,2]
[421557323,1777878473000,-1127.63537576,0.00017176,2]